bitfinex/quotes_ETHUSD_20250620
["timestamp","ask_amount","ask_price","bid_price","bid_amount"]
[1750426838029,1.777,2555.6,2555.1,3.91367115]
[1750426838333,1.777,2555.6,2555.2,3.9135659]
[1750426838502,1.777,2555.6,2554.6,0.8093]
[1750426838503,1.777,2555.6,2555.3,3.91334764]
[1750426838708,1.777,2555.6,2555.2,3.91353481]
[1750426838933,10.6942,2556.1,2555.2,4.70020918]
[1750426839234,10.0,2555.9,2555.4,3.91327635]
[1750426839437,10.0,2555.9,2555.5,0.03912934]
[1750426839609,10.0,2555.9,2555.6,3.91289968]
[1750426839932,10.0,2555.9,2555.3,0.8068]
[1750426840332,10.0,2555.9,2555.3,5.27091957]
[1750426840538,10.0,2555.9,2554.9,0.8068]
[1750426840708,10.92553846,2555.4,2554.5,0.7801]
[1750426840908,10.92553846,2555.4,2553.6,1.778]
[1750426840909,3.913932,2555.0,2553.9,0.7801]
[1750426841108,3.91375617,2555.1,2553.9,0.7801]
[1750426841295,12.28147885,2555.3,2554.0,0.55]
[1750426841496,12.28148115,2555.3,2553.9,0.7801]
[1750426841728,3.91377124,2555.1,2553.9,0.7801]
[1750426841928,3.91377124,2555.1,2554.0,0.55]
[1750426842123,0.6942,2555.6,2554.2,0.55]
[1750426842332,0.6942,2555.6,2554.4,0.55]
[1750426842333,10.0,2555.4,2554.4,0.55]
[1750426842638,10.92553846,2555.2,2554.3,0.8178]
[1750426842800,3.91415709,2554.9,2554.3,0.8178]
[1750426842999,3.91428514,2554.8,2554.3,0.8178]
[1750426843415,12.98729547,2554.9,2554.3,0.8178]
[1750426843611,9.0732,2554.9,2554.4,0.039144]
[1750426843962,8.378,2554.8,2554.4,0.039144]
[1750426844167,3.9152013,2554.2,2553.9,0.7691]
[1750426844326,14.84044891,2554.4,2553.9,0.7691]
[1750426844645,10.92553846,2554.4,2553.4,10.758]
[1750426844846,12.29497411,2554.3,2553.4,10.758]
[1750426845162,12.29597411,2554.3,2553.5,1.2536]
[1750426845363,8.381,2554.3,2553.4,0.758]
[1750426845667,12.29391311,2554.4,2553.4,0.758]
[1750426845869,8.379,2554.4,2553.5,0.55]
[1750426846166,12.2938982,2554.4,2553.5,0.55]
[1750426846370,0.6942,2554.9,2553.7,0.55]
[1750426846582,10.0,2555.0,2554.1,0.55]
[1750426846750,3.91391489,2555.0,2554.2,0.03913941]
[1750426847094,3.91405026,2554.9,2554.1,0.55]
[1750426847588,10.92553846,2555.0,2554.1,1.13006]
[1750426847764,10.92553846,2555.0,2554.0,0.7506]
[1750426847765,15.5342646,2554.6,2554.0,0.7506]
[1750426847963,15.69380657,2554.5,2553.3,0.8125]
[1750426848157,3.91534465,2554.1,2553.3,0.8125]
[1750426848501,3.91617775,2553.6,2553.3,0.8125]
[1750426848702,3.91630119,2553.5,2553.3,0.8125]
[1750426848908,3.91635379,2553.4,2552.7,0.7718]
[1750426849200,3.91661641,2553.3,2552.7,0.7718]
[1750426849606,5.69544404,2553.4,2552.7,0.7718]
[1750426849748,3.91658062,2553.3,2552.7,0.7718]
[1750426850254,1.779,2553.4,2552.7,0.7718]
[1750426850576,3.91665361,2553.2,2552.3,0.7869]
[1750426850888,0.6942,2553.3,2552.3,0.7869]
[1750426850889,10.92553846,2553.0,2552.3,0.7869]
[1750426851090,3.91781109,2552.5,2552.0,0.7869]
[1750426851293,11.779,2552.9,2552.0,0.7869]
[1750426851294,3.918215,2552.2,2552.0,0.7869]
[1750426851477,3.91810596,2552.3,2552.0,0.7869]
[1750426851665,3.91803471,2552.3,2552.0,0.7869]
[1750426851872,3.91819285,2552.2,2552.0,0.7869]
[1750426852074,3.91819285,2552.2,2551.4,0.7997]
[1750426852274,3.91809703,2552.3,2551.5,0.25787]
[1750426852474,3.91803471,2552.3,2551.5,0.25787]
[1750426852783,5.6969187,2552.4,2551.5,0.25787]
[1750426852983,10.92553846,2552.2,2551.5,0.25787]
[1750426853293,3.91917347,2551.6,2551.4,0.7997]
[1750426853465,1.78,2551.7,2551.4,0.7997]
[1750426854018,5.69904861,2551.7,2551.4,0.7997]
[1750426854153,0.6942,2552.5,2551.4,0.7997]
[1750426854351,10.0,2552.3,2551.4,0.7997]
[1750426854652,10.0,2552.0,2551.5,3.9192396]
[1750426854990,0.18695637,2552.4,2551.5,3.91918058]
[1750426855196,3.91849623,2552.0,2551.4,4.71905807]
[1750426855402,5.69849623,2552.0,2551.4,4.71905807]
[1750426855618,0.18695637,2552.4,2551.5,0.47190581]
[1750426855764,1.78,2552.3,2551.5,0.55]
[1750426856094,1.96695637,2552.4,2551.4,0.7997]
[1750426856264,10.0,2552.2,2551.4,0.7997]
[1750426856469,10.92553846,2552.3,2551.4,0.7997]
[1750426856470,3.91903126,2551.7,2551.4,0.7997]
[1750426856715,3.91887276,2551.8,2551.4,0.7997]
[1750426856896,1.78,2551.8,2551.5,0.03918768]
[1750426857103,1.78,2551.8,2551.4,0.7997]
[1750426857285,5.6988166,2551.8,2551.4,0.7997]
[1750426857613,5.69882734,2551.8,2551.5,0.03918616]
[1750426857768,1.78,2551.8,2551.5,0.03918616]
[1750426858203,5.69882692,2551.8,2551.5,0.03918616]
[1750426858718,3.91910957,2551.6,2551.5,0.03918616]
[1750426859043,3.91904568,2551.7,2551.4,0.7997]
[1750426859211,1.78,2551.8,2551.4,0.7997]
[1750426859370,5.69886748,2551.8,2551.4,0.7997]
[1750426859575,3.91908737,2551.7,2551.4,0.7997]
[1750426859990,5.69887449,2551.8,2551.4,0.7997]
[1750426860276,1.78,2551.9,2551.5,0.03918796]
[1750426860500,0.6942,2552.4,2551.5,0.03918796]
[1750426860666,1.78,2552.3,2551.6,0.55]
[1750426860868,10.76279987,2552.7,2551.6,0.55]
[1750426860869,1.36179987,2552.7,2552.0,0.55]
[1750426861095,0.18695637,2552.6,2552.1,0.03917146]
[1750426861304,0.18695637,2552.6,2552.2,0.55]
[1750426861612,3.91689158,2553.1,2552.5,0.8124]
[1750426861918,3.91687707,2553.1,2552.5,0.8124]
[1750426862135,3.91673238,2553.2,2552.5,0.8124]
[1750426862270,3.91689346,2553.1,2552.6,0.03916974]
[1750426862474,10.92553846,2553.1,2552.5,0.8124]
[1750426862702,3.917425,2552.7,2552.5,0.8124]
[1750426862912,3.91726066,2552.9,2552.5,0.8124]
[1750426863123,13.91673745,2553.2,2552.6,3.95664044]
[1750426863290,1.78,2553.0,2552.6,0.86868528]
[1750426863485,3.91721743,2552.9,2552.5,0.8124]
[1750426863688,3.91783278,2552.5,2551.9,4.73876357]
[1750426864096,3.91783278,2552.5,2552.0,3.91848589]
[1750426864323,3.91767443,2552.6,2552.1,3.95750817]
[1750426864619,3.91747139,2552.7,2552.1,3.95750817]
[1750426864915,3.91759208,2552.6,2552.2,0.39575082]
[1750426865216,11.78,2553.0,2551.9,0.8202]
[1750426865428,3.91757423,2552.6,2551.9,0.8202]
[1750426865616,3.91826265,2552.2,2551.9,0.8202]
[1750426865818,3.9178812,2552.4,2551.9,0.8202]
[1750426865819,3.91810249,2552.3,2551.9,0.8202]
[1750426866128,3.91866777,2551.9,2551.5,0.7518]
[1750426866335,3.91859426,2552.0,2551.5,0.7518]
[1750426866495,3.91859426,2552.0,2551.6,0.46711741]
[1750426866698,3.91859426,2552.0,2551.7,0.03918488]
[1750426866917,3.91861126,2552.0,2551.7,0.03918488]
[1750426867118,3.91874407,2551.9,2551.5,0.7518]
[1750426867317,3.91882933,2551.8,2551.5,0.7518]
[1750426867728,3.91897675,2551.7,2551.5,0.7518]
[1750426867923,3.91892499,2551.8,2551.2,0.8117]
[1750426868257,15.71249536,2552.0,2551.4,3.91941679]
[1750426868408,3.91887206,2551.8,2551.5,0.78780777]
[1750426868602,3.91887206,2551.8,2551.2,0.8117]
[1750426869503,3.91897706,2551.7,2551.2,0.8117]
[1750426869728,3.91872737,2551.9,2551.2,0.8117]
[1750426869921,3.91872737,2551.9,2551.3,0.03918755]
[1750426870125,15.71255558,2552.0,2551.3,0.03918755]
[1750426870407,3.91897469,2551.7,2551.2,0.8117]
[1750426870603,11.794,2552.0,2551.2,0.8117]
[1750426870935,11.794,2552.0,2550.7,0.2145719]
[1750426870936,10.92553846,2551.7,2550.8,0.7877]
[1750426871235,3.91942987,2551.4,2550.8,0.7877]
[1750426871542,3.91943857,2551.4,2550.8,0.7877]
[1750426871735,1.795,2551.5,2550.8,0.7877]
[1750426871937,3.91958769,2551.3,2550.8,0.7877]
[1750426872139,10.6942,2552.2,2551.0,0.55]
[1750426872436,1.795,2551.8,2551.2,0.7735]
[1750426872611,5.71389829,2551.8,2551.3,0.03918769]
[1750426872812,1.795,2551.8,2551.3,0.03918769]
[1750426873142,5.71382967,2551.8,2551.3,0.03918769]
[1750426873643,5.71381049,2551.8,2551.2,0.7735]
[1750426873947,3.91895599,2551.7,2551.2,0.7735]
[1750426874137,3.91934614,2551.5,2551.2,0.7735]
[1750426874324,3.91982483,2551.2,2550.9,0.82]
[1750426874518,3.91998485,2551.1,2550.7,0.2145719]
[1750426875346,3.92003236,2551.0,2550.7,0.2145719]
[1750426875515,3.91995482,2551.1,2550.7,0.2145719]
[1750426875715,0.6942,2551.5,2550.7,0.25377141]
[1750426875716,10.6942,2551.5,2550.7,0.25377141]
[1750426876045,3.91904694,2551.7,2550.8,0.7546]
[1750426876228,11.795,2551.8,2550.8,0.7546]
[1750426876428,0.65260802,2551.7,2550.8,0.7546]
[1750426876641,3.91968813,2551.3,2550.8,0.7546]
[1750426876843,10.0,2551.8,2550.8,0.7546]
[1750426877139,3.91913305,2551.6,2550.9,0.03919354]
[1750426877340,1.795,2551.7,2550.9,0.03919354]
[1750426877541,1.795,2551.7,2550.9,0.55]
[1750426877741,3.91918787,2551.6,2550.8,0.7546]
[1750426878255,9.411,2552.0,2550.9,0.58919083]
[1750426878548,9.411,2552.0,2550.8,0.7546]
[1750426878549,6.0786769,2551.9,2551.1,0.55]
[1750426878759,3.91882081,2551.8,2551.1,0.55]
[1750426878917,5.71372772,2551.9,2551.1,0.55]
[1750426879117,13.32958354,2552.0,2551.1,0.55]
[1750426879318,3.9189636,2551.7,2551.1,0.55]
[1750426879569,3.91948619,2551.4,2551.0,0.8093]
[1750426879746,10.92553846,2551.5,2551.0,0.8093]
[1750426879933,3.91974852,2551.2,2551.0,0.8093]
[1750426880128,1.795,2551.4,2550.7,0.9950719]
[1750426880328,1.795,2551.4,2550.8,0.03919761]
[1750426880329,3.91980931,2551.2,2550.8,0.03919761]
[1750426880544,3.91988184,2551.1,2550.8,0.03919761]
[1750426880865,3.92018772,2550.9,2550.7,0.9950719]
[1750426881021,3.92033871,2550.8,2550.7,0.2145719]
[1750426882026,3.92026515,2550.9,2550.7,0.2145719]
[1750426882834,14.84547354,2551.1,2550.7,0.2145719]
[1750426883039,1.795,2551.2,2550.8,0.03920364]
[1750426883219,0.36480351,2551.1,2550.9,0.7574]
[1750426883418,5.71479483,2551.2,2550.9,0.7574]
[1750426884034,3.92010695,2551.0,2550.7,0.2145719]
[1750426884428,1.795,2551.2,2550.7,0.2145719]
[1750426884629,3.92033871,2550.8,2550.7,0.2145719]
[1750426885055,10.91381719,2550.8,2550.7,0.2145719]
[1750426885270,20.91381719,2550.8,2550.7,0.2145719]
[1750426885472,21.13246029,2550.8,2550.7,0.2145719]
[1750426885973,21.13240444,2550.8,2550.7,0.2145719]
[1750426886125,21.132412,2550.8,2550.7,0.2145719]
[1750426886636,21.13241254,2550.8,2550.7,0.2145719]
[1750426886839,21.13241237,2550.8,2550.7,0.2145719]
[1750426887364,21.13240861,2550.8,2550.7,0.2145719]
[1750426887529,21.13234977,2550.8,2550.7,0.2145719]
[1750426887932,20.9137574,2550.8,2550.7,0.2145719]
[1750426888366,21.6079574,2550.8,2550.7,0.2145719]
[1750426888531,21.60741151,2550.8,2550.7,0.2145719]
[1750426889029,21.60740844,2550.8,2550.7,0.2145719]
[1750426889342,23.39837612,2550.8,2550.7,0.2145719]
[1750426889535,24.28867707,2550.8,2550.7,0.2145719]
[1750426889760,23.39837612,2550.8,2550.7,0.06421449]
[1750426889961,23.03453871,2550.8,2550.7,0.06421449]
[1750426890263,3.92179096,2549.9,2549.6,0.8011]
[1750426890664,3.92163437,2550.0,2549.6,0.8011]
[1750426890965,3.92173673,2549.9,2549.6,0.8011]
[1750426891151,3.9218117,2549.9,2549.6,0.8011]
[1750426891465,3.92165101,2550.0,2549.6,0.8011]
[1750426891666,3.92172454,2549.9,2549.6,0.8011]
[1750426891863,3.92190812,2549.8,2549.6,0.8011]
[1750426892061,3.92178959,2549.9,2549.6,0.8011]
[1750426892368,3.92191925,2549.8,2549.0,0.82]
[1750426892570,6.618,2549.8,2549.0,0.82]
[1750426892757,3.92256458,2549.4,2549.0,0.82]
[1750426893136,3.92288566,2549.2,2549.0,0.82]
[1750426893331,3.92274927,2549.3,2548.4,0.8221]
[1750426893561,3.92274927,2549.3,2548.5,0.26181]
[1750426894149,3.9225056,2549.4,2548.7,0.784]
[1750426894367,3.92240873,2549.5,2548.8,0.03922484]
[1750426894534,1.37588214,2550.7,2548.8,0.03922484]
[1750426894868,12.3384964,2550.1,2549.1,3.92295319]
[1750426895070,12.33846084,2550.1,2549.4,3.92242334]
[1750426895269,12.33846084,2550.1,2549.4,3.92241699]
[1750426895270,3.92159469,2550.0,2549.4,3.92241699]
[1750426895634,0.6942,2550.5,2549.6,0.7581]
[1750426895833,3.92112917,2550.3,2549.7,0.03921272]
[1750426896034,1.37588214,2550.7,2549.6,0.7581]
[1750426896262,1.37588214,2550.7,2549.7,0.03921072]
[1750426896263,12.33671277,2550.6,2549.7,0.03921072]
[1750426896458,3.92088356,2550.5,2549.7,0.55]
[1750426897050,1.37588214,2550.7,2549.7,0.58920875]
[1750426897255,1.37588214,2550.7,2549.9,0.55]
[1750426897452,1.37588214,2550.7,2550.1,0.55]
[1750426897653,1.37588214,2550.7,2550.3,0.8133]
[1750426897855,1.37588214,2550.7,2550.4,0.03920093]
[1750426898070,5.70595943,2551.1,2550.4,0.03920093]
[1750426898439,5.70588119,2551.1,2550.4,0.03920093]
[1750426898973,3.92006391,2551.0,2550.4,0.03920093]
[1750426899379,3.92018696,2550.9,2550.3,0.8133]
[1750426899546,3.92011233,2551.0,2550.3,0.8133]
[1750426899875,3.92041337,2550.8,2550.3,0.8133]
[1750426900055,3.920264,2550.9,2550.4,0.47344668]
[1750426900583,0.65260802,2551.6,2550.5,0.03920182]
[1750426900878,3.91919943,2551.6,2550.8,0.8071]
[1750426901176,5.70543762,2551.4,2550.8,0.8071]
[1750426901577,1.786,2551.4,2550.8,0.8071]
[1750426901879,5.70552409,2551.4,2550.8,0.8071]
[1750426902281,3.91958366,2551.3,2550.8,0.8071]
[1750426902481,5.70542963,2551.4,2550.8,0.8071]
[1750426902681,3.91965805,2551.3,2550.8,0.8071]
[1750426904782,3.91981708,2551.2,2550.8,0.8071]
[1750426905288,3.91963486,2551.3,2550.8,0.8071]
[1750426905589,3.91975415,2551.2,2550.8,0.8071]
[1750426905769,3.91962984,2551.3,2550.8,0.8071]
[1750426906087,3.92002655,2551.1,2550.8,0.8071]
[1750426906609,3.92004961,2551.0,2550.8,0.8071]
[1750426906902,3.92004961,2551.0,2550.1,10.95025893]
[1750426906903,3.92010939,2551.0,2550.2,0.7557]
[1750426907206,3.91996582,2551.1,2550.3,1.11559589]
[1750426907347,1.786,2551.1,2550.5,0.8035]
[1750426907743,5.70592527,2551.1,2550.5,0.8035]
[1750426907948,1.786,2551.1,2550.6,0.0392007]
[1750426908186,1.786,2551.1,2550.5,0.8035]
[1750426908501,5.70580664,2551.2,2550.5,0.8035]
[1750426908916,1.786,2551.2,2550.6,0.0391979]
[1750426909226,5.70573614,2551.2,2550.5,0.8035]
[1750426909695,3.92012349,2551.0,2550.5,0.8035]
[1750426909866,3.91993861,2551.1,2550.6,0.03920021]
[1750426910066,3.91952856,2551.4,2550.6,0.03920021]
[1750426910254,3.91952856,2551.4,2550.5,0.8035]
[1750426910255,5.70564093,2551.3,2550.5,0.8035]
[1750426910451,5.70564093,2551.3,2550.6,0.03919593]
[1750426910658,5.70564093,2551.3,2550.5,0.8035]
[1750426911198,3.91975803,2551.2,2550.5,0.8035]
[1750426911403,5.70565046,2551.3,2550.5,0.8035]
[1750426911722,5.70565046,2551.3,2550.6,0.03919597]
[1750426911988,1.786,2551.3,2550.5,0.8035]
[1750426912288,3.91980125,2551.2,2550.5,0.8035]
[1750426912590,3.91980125,2551.2,2550.6,0.0391971]
[1750426912887,9.417,2551.7,2550.8,0.7931]
[1750426913075,1.786,2551.6,2550.9,0.03919324]
[1750426913274,5.70517482,2551.6,2551.0,0.7931]
[1750426913467,5.70517482,2551.6,2551.1,0.03919258]
[1750426913668,3.9194087,2551.5,2551.1,0.03919258]
[1750426914261,3.9194087,2551.5,2551.0,0.7931]
[1750426914462,3.91957736,2551.3,2551.0,0.7931]
[1750426914697,3.91949222,2551.4,2551.0,0.7931]
[1750426914899,3.91934319,2551.5,2551.0,0.7931]
[1750426915203,5.70515669,2551.6,2551.0,0.7931]
[1750426915204,1.786,2551.6,2551.0,0.7931]
[1750426916178,3.91942739,2551.4,2551.0,0.7931]
[1750426916415,3.91934931,2551.5,2551.0,0.7931]
[1750426916911,1.786,2551.6,2551.0,0.7931]
[1750426917072,1.786,2551.6,2551.1,0.03919248]
[1750426917073,5.70518427,2551.6,2551.1,0.03919248]
[1750426917264,3.91927814,2551.5,2551.1,0.03919248]
[1750426917499,5.70520036,2551.6,2551.1,0.03919248]
[1750426917707,11.57814648,2552.4,2551.1,0.03919248]
[1750426918005,1.785,2552.2,2551.3,0.55]
[1750426918296,3.91857008,2552.0,2551.4,0.8292]
[1750426918483,0.6942,2552.1,2551.4,0.8292]
[1750426918675,3.91886923,2551.8,2551.4,0.8292]
[1750426918992,3.91858296,2552.0,2551.4,0.8292]
[1750426918993,6.582,2551.9,2551.4,0.8292]
[1750426919318,3.91936246,2551.5,2551.1,0.8292]
[1750426919814,1.785,2551.6,2551.2,0.03919338]
[1750426920918,5.70412353,2551.6,2551.2,0.03919338]
[1750426921120,3.91896158,2551.7,2551.1,0.8292]
[1750426921296,3.91913728,2551.6,2551.1,0.8292]
[1750426921496,14.84464803,2551.6,2551.1,0.8292]
[1750426921709,3.91972405,2551.2,2550.2,14.71]
[1750426921923,3.91978975,2551.2,2550.3,0.7928]
[1750426922100,3.91994566,2551.1,2550.3,10.7928]
[1750426922301,3.91979668,2551.2,2550.4,1.55028]
[1750426922702,3.9193571,2551.5,2550.6,0.7988]
[1750426922925,11.61973846,2551.6,2550.7,0.03919837]
[1750426923231,11.61973846,2551.6,2550.7,0.03919838]
[1750426923232,3.91987096,2551.2,2550.7,0.03919838]
[1750426923419,3.91987096,2551.2,2550.3,10.0]
[1750426923420,10.92553846,2550.8,2550.3,0.7988]
[1750426923623,10.92553846,2550.4,2550.0,0.7988]
[1750426924012,3.92123357,2550.3,2550.0,0.7988]
[1750426924226,0.6942,2550.9,2550.0,0.7988]
[1750426924532,10.0,2550.9,2550.1,0.03920878]
[1750426924750,3.92092232,2550.5,2550.0,0.7988]
[1750426925054,3.92072039,2550.6,2550.0,0.7988]
[1750426925202,3.92072039,2550.6,2550.1,0.03921056]
[1750426925401,3.92079984,2550.5,2550.0,0.7988]
[1750426925642,3.92103104,2550.4,2550.0,0.7988]
[1750426925845,3.92114568,2550.3,2550.0,0.7988]
[1750426926049,1.785,2550.6,2550.0,0.7988]
[1750426926205,11.785,2551.0,2550.1,0.03921228]
[1750426926400,3.91920339,2551.6,2550.4,0.7881]
[1750426926640,2.4792,2551.8,2550.7,0.55]
[1750426926845,5.70381056,2551.8,2551.0,0.8103]
[1750426927041,1.785,2551.8,2551.0,0.8103]
[1750426927227,3.91902796,2551.7,2551.0,0.8103]
[1750426927426,5.70387691,2551.8,2551.0,0.8103]
[1750426927629,3.91903982,2551.7,2551.0,0.8103]
[1750426928613,3.91928478,2551.5,2551.0,0.8103]
[1750426928849,3.91914397,2551.6,2551.0,0.8103]
[1750426929346,3.91927885,2551.5,2551.0,0.8103]
[1750426929533,3.91919103,2551.6,2551.0,0.8103]
[1750426929936,1.785,2551.8,2551.1,0.03919359]
[1750426930238,3.91912054,2551.6,2551.0,0.8103]
[1750426930754,3.91926317,2551.5,2551.0,0.8103]
[1750426931055,3.9194288,2551.4,2551.0,0.7603]
[1750426931353,14.84466094,2551.6,2551.0,0.7603]
[1750426931649,3.92018458,2551.0,2549.2,10.92553846]
[1750426931811,1.77,2551.1,2549.9,14.4681]
[1750426932012,13.91945799,2551.4,2550.1,0.55]
[1750426932335,1.77,2551.3,2550.3,0.55]
[1750426932646,10.0,2551.5,2550.5,0.55]
[1750426932846,1.77,2551.6,2550.7,0.55]
[1750426933046,1.77,2551.6,2550.8,0.03919303]
[1750426933546,5.68918809,2551.6,2550.7,10.0]
[1750426933751,1.77,2551.6,2550.8,1.09419304]
[1750426933950,3.91944847,2551.4,2550.6,0.8013]
[1750426934124,3.91957378,2551.3,2550.6,0.8013]
[1750426934352,3.91934703,2551.5,2550.7,0.03919571]
[1750426934553,1.77,2551.6,2550.7,0.03919571]
[1750426934764,15.68871548,2551.9,2550.8,0.8013]
[1750426935080,3.91883072,2551.8,2551.0,0.7896]
[1750426935276,15.6887168,2551.9,2551.0,0.7896]
[1750426935470,3.91888861,2551.8,2551.1,0.03919016]
[1750426935843,1.77,2551.9,2551.2,0.8226]
[1750426936045,1.77,2551.9,2551.3,0.03919018]
[1750426936244,3.91881489,2551.8,2551.3,0.03919018]
[1750426936448,3.91881489,2551.8,2551.2,0.8226]
[1750426936648,11.57814648,2552.5,2551.3,0.03919019]
[1750426936944,9.414,2552.7,2551.6,0.7663]
[1750426936945,11.9282,2552.7,2551.6,0.7663]
[1750426937148,3.91794896,2552.4,2551.7,0.0391819]
[1750426937545,3.91781513,2552.5,2551.8,0.7663]
[1750426937779,1.36580708,2552.6,2551.9,0.03918064]
[1750426937969,3.91788714,2552.4,2551.8,0.7663]
[1750426938145,12.29134554,2552.6,2551.8,0.7663]
[1750426938348,3.91794761,2552.4,2551.8,0.7663]
[1750426939286,0.65260802,2552.3,2551.8,0.7663]
[1750426939688,10.0,2552.1,2550.9,0.39015878]
[1750426939987,10.92553846,2551.7,2551.0,0.7734]
[1750426940164,3.91898491,2551.7,2551.0,0.7734]
[1750426940360,1.77,2551.9,2551.1,0.03919381]
[1750426940694,3.919184,2551.6,2551.1,0.03919381]
[1750426940857,3.91904283,2551.7,2551.1,0.03919381]
[1750426941191,3.91889208,2551.8,2551.1,0.03919381]
[1750426941492,5.68902735,2551.7,2551.1,0.03919381]
[1750426941993,3.91911953,2551.6,2551.1,0.03919381]
[1750426942211,1.77,2551.7,2551.0,0.7734]
[1750426942392,10.92553846,2551.6,2551.0,0.7734]
[1750426942558,3.9202626,2550.9,2550.1,0.8042]
[1750426942753,12.69553846,2551.2,2550.1,0.8042]
[1750426942993,3.92028235,2550.9,2550.1,0.8042]
[1750426945781,10.0,2551.5,2550.4,0.8052]
[1750426945983,10.0,2551.5,2550.6,0.7688]
[1750426945984,5.68948622,2551.4,2550.6,0.7688]
[1750426946385,3.91960577,2551.3,2550.6,0.7688]
[1750426946588,5.68951666,2551.4,2550.6,0.7688]
[1750426946898,5.68948686,2551.4,2550.7,0.03919794]
[1750426947071,3.91972904,2551.2,2550.7,0.03919794]
[1750426947279,3.91972904,2551.2,2550.6,0.7688]
[1750426947473,3.9193403,2551.5,2550.6,0.7688]
[1750426947678,5.6893403,2551.5,2550.8,0.7995]
[1750426948007,3.91942817,2551.4,2550.9,0.03919643]
[1750426949207,4.66288524,2551.9,2550.9,0.03919643]
[1750426949208,1.77,2552.0,2551.0,0.8297]
[1750426949500,3.91880241,2551.8,2551.0,0.8297]
[1750426949705,3.91938528,2551.5,2551.0,0.8297]
[1750426950566,10.92553846,2551.7,2551.0,0.8297]
[1750426950891,3.91981806,2551.2,2551.0,0.8297]
[1750426951215,3.91965732,2551.3,2551.0,0.8297]
[1750426951409,3.91975891,2551.2,2551.0,0.8297]
[1750426952169,3.9194547,2551.4,2550.4,0.7589]
[1750426952170,3.91987769,2551.1,2550.4,0.7589]
[1750426952418,3.92028773,2550.9,2550.4,0.7589]
[1750426953018,1.77,2550.8,2550.4,0.7589]
[1750426953249,3.92063495,2550.7,2550.2,0.7585]
[1750426953548,1.77,2550.8,2550.3,0.03920909]
[1750426953748,3.9201895,2550.9,2550.4,3.92094927]
[1750426953951,3.92035695,2550.8,2550.3,4.43213888]
[1750426954299,1.77,2551.0,2550.3,0.51110379]
[1750426954533,13.91988284,2551.1,2550.7,0.7585]
[1750426955006,12.28620085,2551.6,2550.7,0.79770095]
[1750426955249,8.367,2551.6,2551.1,3.91979935]
[1750426955413,8.367,2551.6,2551.2,0.7759]
[1750426955613,3.9194886,2551.4,2551.2,0.7759]
[1750426955833,3.91934535,2551.5,2551.2,0.7759]
[1750426956039,1.77,2551.6,2551.2,0.7759]
[1750426956312,3.9183624,2552.1,2551.4,3.91934227]
[1750426956313,1.771,2552.0,2551.4,3.91934227]
[1750426956502,1.771,2552.0,2551.5,0.82258886]
[1750426956738,1.771,2552.0,2551.5,4.74170357]
[1750426957455,5.68909737,2552.3,2551.6,3.91910929]
[1750426957607,3.91818822,2552.2,2551.6,3.91910929]
[1750426957807,3.91820695,2552.2,2551.5,4.70258294]
[1750426958042,0.89030095,2552.2,2551.5,0.7834]
[1750426958253,3.91859419,2552.0,2551.5,0.7834]
[1750426958722,3.91873226,2551.9,2551.5,0.7834]
[1750426959349,3.91910957,2551.6,2551.5,0.7834]
[1750426959539,3.91910957,2551.6,2550.2,9.414]
[1750426959540,1.772,2551.8,2551.2,0.768]
[1750426959705,3.91933281,2551.5,2551.2,0.768]
[1750426960129,3.91926317,2551.5,2551.2,0.768]
[1750426960821,3.91933992,2551.5,2551.2,0.768]
[1750426961031,0.89030095,2551.5,2550.9,0.7759]
[1750426961346,3.91979551,2551.2,2550.9,0.7759]
[1750426961646,3.91963072,2551.3,2550.9,0.7759]
[1750426962705,3.91929454,2551.5,2550.9,4.73527653]
[1750426962706,8.363,2551.5,2550.9,4.73527653]
[1750426962904,3.91944169,2551.4,2550.9,0.7759]
[1750426963555,12.28230194,2551.5,2550.9,0.7759]
[1750426963847,3.91957231,2551.3,2550.9,0.7759]
[1750426964148,8.363,2551.5,2550.9,0.7759]
[1750426964333,3.91972439,2551.2,2550.9,0.7759]
[1750426964705,3.91988306,2551.1,2550.4,4.73105666]
[1750426964906,8.359,2551.0,2550.4,0.8102]
[1750426965246,10.92553846,2550.8,2550.1,0.8102]
[1750426965435,3.9210806,2550.4,2550.1,0.8102]
[1750426965632,3.92072869,2550.6,2550.1,0.8102]
[1750426966008,3.92095288,2550.5,2550.1,0.8102]
[1750426966228,3.9209837,2550.4,2550.1,0.8102]
[1750426966420,10.92553846,2550.8,2550.1,0.8102]
[1750426966715,3.92064612,2550.6,2550.1,0.8102]
[1750426966910,3.92080162,2550.5,2550.1,0.8102]
[1750426967115,3.92105542,2550.4,2550.1,0.8102]
[1750426967631,4.46926168,2551.6,2550.1,1.2833915]
[1750426967835,3.92029168,2550.9,2550.6,0.8261]
[1750426968006,10.0,2551.1,2550.6,0.8261]
[1750426968221,5.69181659,2551.2,2550.7,3.92048429]
[1750426968422,12.28281659,2551.2,2550.7,3.92048429]
[1750426968621,12.28281659,2551.2,2550.6,4.74666026]
[1750426968823,12.28272898,2551.2,2550.6,0.8261]
[1750426969023,3.92003542,2551.0,2550.6,0.8261]
[1750426969525,3.92003136,2551.0,2550.6,0.8261]
[1750426969958,3.92018771,2550.9,2550.6,0.8261]
[1750426970759,3.92011684,2551.0,2550.6,0.8261]
[1750426971768,19.28853846,2551.2,2550.6,0.8261]
[1750426972070,3.92081111,2550.5,2550.1,0.8286]
[1750426972573,3.92111327,2550.3,2550.1,0.8286]
[1750426972731,3.92104188,2550.4,2550.1,0.8286]
[1750426972926,5.69253297,2550.7,2550.1,0.8286]
[1750426973131,3.92119943,2550.3,2550.1,0.8286]
[1750426973549,3.92126107,2550.2,2550.1,0.8286]
[1750426973742,10.0,2550.7,2550.1,4.74993125]
[1750426973946,3.92088055,2550.5,2550.2,0.03920712]
[1750426974242,3.92088055,2550.5,2550.1,0.8286]
[1750426974429,3.92097746,2550.4,2550.1,0.8286]
[1750426974772,3.92117548,2550.3,2550.1,0.8286]
[1750426974952,3.92124894,2550.3,2550.1,0.8286]
[1750426975151,10.50365673,2550.6,2550.1,0.8286]
[1750426975338,3.92124609,2550.3,2550.1,0.8286]
[1750426975543,3.92104303,2550.4,2550.1,0.8286]